[Event "Titled Tuesday Blitz April 12 Late 2022"]
[White "Narayanan.S.L"]
[Black "Cabarkapa, Novak"]
[WhiteFideId "5058422"]
[BlackFideId "943746"]
[WhiteElo "2494"]
[BlackElo "2443"]
[Result "1-0"]
[Round "11"]
[TimeControl "180+1"]
[Date "2022.04.12"]
[WhiteClock "0:01:50"]
[BlackClock "0:00:02"]

1. Nf3 {[%clk 0:03:00]}  d5 {[%clk 0:02:59]} 2. c4 {[%clk 0:02:59]}  d4 {[%clk 0:02:58]} 3. b4 {[%clk 0:02:58]}  g5 {[%clk 0:02:58]} 4. g3 {[%clk 0:02:58]}  Bg7 {[%clk 0:02:53]} 5. d3 {[%clk 0:02:58]}  g4 {[%clk 0:02:52]} 6. Nh4 {[%clk 0:02:58]}  Bf6 {[%clk 0:02:50]} 7. Nd2 {[%clk 0:02:57]}  Bxh4 {[%clk 0:02:50]} 8. gxh4 {[%clk 0:02:58]}  e5 {[%clk 0:02:49]} 9. Ne4 {[%clk 0:02:57]}  Qxh4 {[%clk 0:02:48]} 10. Qa4+ {[%clk 0:02:52]}  Kf8 {[%clk 0:02:26]} 11. Bg5 {[%clk 0:02:28]}  Qh5 {[%clk 0:02:25]} 12. Qa5 {[%clk 0:02:28]}  Nc6 {[%clk 0:02:10]} 13. Qxc7 {[%clk 0:02:27]}  f5 {[%clk 0:01:57]} 14. Nd6 {[%clk 0:02:23]}  h6 {[%clk 0:01:17]} 15. Bd2 {[%clk 0:02:16]}  Nce7 {[%clk 0:01:03]} 16. Nxc8 {[%clk 0:02:13]}  Rxc8 {[%clk 0:01:01]} 17. Qxe5 {[%clk 0:02:13]}  Rh7 {[%clk 0:00:59]} 18. Qxd4 {[%clk 0:02:13]}  Nc6 {[%clk 0:00:49]} 19. Qd6+ {[%clk 0:02:12]}  Nge7 {[%clk 0:00:49]} 20. Bg2 {[%clk 0:02:12]}  Rd8 {[%clk 0:00:47]} 21. Qf6+ {[%clk 0:02:11]}  Rf7 {[%clk 0:00:45]} 22. Qxh6+ {[%clk 0:02:11]}  Qxh6 {[%clk 0:00:44]} 23. Bxh6+ {[%clk 0:02:12]}  Kg8 {[%clk 0:00:45]} 24. Bd2 {[%clk 0:02:11]}  Nd4 {[%clk 0:00:45]} 25. Rc1 {[%clk 0:02:10]}  f4 {[%clk 0:00:43]} 26. Be4 {[%clk 0:02:10]}  f3 {[%clk 0:00:39]} 27. exf3 {[%clk 0:02:08]}  Nxf3+ {[%clk 0:00:39]} 28. Bxf3 {[%clk 0:02:07]}  Rxf3 {[%clk 0:00:37]} 29. Rg1 {[%clk 0:02:07]}  Rfxd3 {[%clk 0:00:30]} 30. Rxg4+ {[%clk 0:02:06]}  Kf7 {[%clk 0:00:30]} 31. Bg5 {[%clk 0:02:07]}  Re8 {[%clk 0:00:25]} 32. Bxe7 {[%clk 0:02:04]}  Rxe7+ {[%clk 0:00:26]} 33. Kf1 {[%clk 0:02:04]}  Rd2 {[%clk 0:00:26]} 34. Rf4+ {[%clk 0:02:04]}  Kg6 {[%clk 0:00:25]} 35. Re1 {[%clk 0:02:03]}  Rxe1+ {[%clk 0:00:24]} 36. Kxe1 {[%clk 0:02:03]}  Rxa2 {[%clk 0:00:25]} 37. c5 {[%clk 0:02:03]}  a5 {[%clk 0:00:20]} 38. bxa5 {[%clk 0:02:01]}  Rxa5 {[%clk 0:00:21]} 39. Rc4 {[%clk 0:02:00]}  Ra2 {[%clk 0:00:18]} 40. Kf1 {[%clk 0:01:59]}  Kg5 {[%clk 0:00:14]} 41. Kg2 {[%clk 0:01:59]}  Rd2 {[%clk 0:00:15]} 42. Kg3 {[%clk 0:01:58]}  Rd3+ {[%clk 0:00:15]} 43. f3 {[%clk 0:01:58]}  Rb3 {[%clk 0:00:14]} 44. h4+ {[%clk 0:01:58]}  Kh5 {[%clk 0:00:12]} 45. Rg4 {[%clk 0:01:58]}  Rc3 {[%clk 0:00:11]} 46. Rg5+ {[%clk 0:01:58]}  Kh6 {[%clk 0:00:11]} 47. Rd5 {[%clk 0:01:58]}  Rb3 {[%clk 0:00:10]} 48. Kg4 {[%clk 0:01:58]}  Kg7 {[%clk 0:00:10]} 49. h5 {[%clk 0:01:58]}  b6 {[%clk 0:00:10]} 50. Rd7+ {[%clk 0:01:58]}  Kh6 {[%clk 0:00:09]} 51. Rd6+ {[%clk 0:01:57]}  Kh7 {[%clk 0:00:08]} 52. Rxb6 {[%clk 0:01:58]}  Rc3 {[%clk 0:00:09]} 53. Rc6 {[%clk 0:01:57]}  Kg7 {[%clk 0:00:09]} 54. f4 {[%clk 0:01:56]}  Kh7 {[%clk 0:00:09]} 55. Kg5 {[%clk 0:01:56]}  Kg7 {[%clk 0:00:10]} 56. h6+ {[%clk 0:01:56]}  Kh7 {[%clk 0:00:10]} 57. Rc7+ {[%clk 0:01:56]}  Kh8 {[%clk 0:00:11]} 58. c6 {[%clk 0:01:56]}  Rg3+ {[%clk 0:00:10]} 59. Kf5 {[%clk 0:01:57]}  Rc3 {[%clk 0:00:09]} 60. Kg6 {[%clk 0:01:54]}  Rg3+ {[%clk 0:00:09]} 61. Kf6 {[%clk 0:01:55]}  Rc3 {[%clk 0:00:09]} 62. f5 {[%clk 0:01:55]}  Rc1 {[%clk 0:00:08]} 63. Rc8+ {[%clk 0:01:53]}  Kh7 {[%clk 0:00:08]} 64. c7 {[%clk 0:01:54]}  Rc6+ {[%clk 0:00:08]} 65. Ke5 {[%clk 0:01:54]}  Rc1 {[%clk 0:00:06]} 66. f6 {[%clk 0:01:54]}  Re1+ {[%clk 0:00:07]} 67. Kd4 {[%clk 0:01:54]}  Rd1+ {[%clk 0:00:07]} 68. Ke3 {[%clk 0:01:54]}  Rc1 {[%clk 0:00:06]} 69. f7 {[%clk 0:01:53]}  Rf1 {[%clk 0:00:01]} 70. f8=Q {[%clk 0:01:51]}  Rf6 {[%clk 0:00:02]} 71. Qg7# {[%clk 0:01:50]} 1-0


[Site "https://www.chess.com"]

[Event "Titled Tuesday Blitz April 12 Late 2022"]
[White "Paravyan, David"]
[Black "Tari, Aryan"]
[WhiteFideId "4194985"]
[BlackFideId "1510045"]
[WhiteElo "2569"]
[BlackElo "2567"]
[Result "0-1"]
[Round "11"]
[TimeControl "180+1"]
[Date "2022.04.12"]
[WhiteClock "0:00:04"]
[BlackClock "0:00:27"]

1. e4 {[%clk 0:03:00]}  c6 {[%clk 0:02:58]} 2. d4 {[%clk 0:03:00]}  d5 {[%clk 0:02:59]} 3. e5 {[%clk 0:03:01]}  Bf5 {[%clk 0:02:58]} 4. Nf3 {[%clk 0:03:01]}  e6 {[%clk 0:02:58]} 5. Be2 {[%clk 0:03:01]}  Ne7 {[%clk 0:02:59]} 6. O-O {[%clk 0:03:00]}  c5 {[%clk 0:02:59]} 7. dxc5 {[%clk 0:02:58]}  Nec6 {[%clk 0:02:59]} 8. Bg5 {[%clk 0:02:58]}  Qc7 {[%clk 0:02:50]} 9. c4 {[%clk 0:02:48]}  dxc4 {[%clk 0:02:47]} 10. Na3 {[%clk 0:02:40]}  Bxc5 {[%clk 0:02:47]} 11. Nb5 {[%clk 0:02:38]}  Qb6 {[%clk 0:02:26]} 12. Nd6+ {[%clk 0:02:38]}  Bxd6 {[%clk 0:02:26]} 13. Qxd6 {[%clk 0:02:39]}  Qb4 {[%clk 0:02:20]} 14. Qxb4 {[%clk 0:02:30]}  Nxb4 {[%clk 0:02:20]} 15. Nd4 {[%clk 0:02:31]}  Bd3 {[%clk 0:02:19]} 16. Bf3 {[%clk 0:02:16]}  N8c6 {[%clk 0:02:16]} 17. Nxc6 {[%clk 0:02:16]}  Nxc6 {[%clk 0:02:10]} 18. Rfc1 {[%clk 0:02:02]}  Nxe5 {[%clk 0:01:52]} 19. Bxb7 {[%clk 0:02:02]}  Rb8 {[%clk 0:01:53]} 20. Bf4 {[%clk 0:02:03]}  f6 {[%clk 0:01:43]} 21. Bxe5 {[%clk 0:02:02]}  fxe5 {[%clk 0:01:44]} 22. Ba6 {[%clk 0:02:02]}  c3 {[%clk 0:01:37]} 23. Bxd3 {[%clk 0:01:45]}  cxb2 {[%clk 0:01:37]} 24. Rab1 {[%clk 0:01:43]}  bxc1=Q+ {[%clk 0:01:37]} 25. Rxc1 {[%clk 0:01:43]}  Kd7 {[%clk 0:01:35]} 26. g3 {[%clk 0:01:42]}  h6 {[%clk 0:01:34]} 27. Rc5 {[%clk 0:01:41]}  Rhc8 {[%clk 0:01:25]} 28. Ra5 {[%clk 0:01:39]}  Rc7 {[%clk 0:01:24]} 29. Kg2 {[%clk 0:01:19]}  Kd6 {[%clk 0:01:24]} 30. h4 {[%clk 0:00:54]}  g5 {[%clk 0:01:22]} 31. hxg5 {[%clk 0:00:53]}  hxg5 {[%clk 0:01:23]} 32. f3 {[%clk 0:00:45]}  Rf7 {[%clk 0:01:02]} 33. Be4 {[%clk 0:00:39]}  g4 {[%clk 0:00:55]} 34. fxg4 {[%clk 0:00:39]}  Rb4 {[%clk 0:00:55]} 35. Ra6+ {[%clk 0:00:37]}  Kc5 {[%clk 0:00:52]} 36. Bg6 {[%clk 0:00:36]}  Rf6 {[%clk 0:00:40]} 37. Bh5 {[%clk 0:00:33]}  e4 {[%clk 0:00:39]} 38. g5 {[%clk 0:00:31]}  Rf5 {[%clk 0:00:39]} 39. Rxe6 {[%clk 0:00:11]}  Rxg5 {[%clk 0:00:39]} 40. g4 {[%clk 0:00:11]}  Kd4 {[%clk 0:00:40]} 41. Kg3 {[%clk 0:00:11]}  Re5 {[%clk 0:00:32]} 42. Rd6+ {[%clk 0:00:11]}  Ke3 {[%clk 0:00:32]} 43. Ra6 {[%clk 0:00:12]}  Kd2 {[%clk 0:00:30]} 44. Rd6+ {[%clk 0:00:06]}  Ke3 {[%clk 0:00:30]} 45. Ra6 {[%clk 0:00:06]}  Rd5 {[%clk 0:00:30]} 46. Rxa7 {[%clk 0:00:06]}  Kd2 {[%clk 0:00:29]} 47. Re7 {[%clk 0:00:05]}  e3 {[%clk 0:00:29]} 48. Kf3 {[%clk 0:00:05]}  Rd3 {[%clk 0:00:28]} 49. g5 {[%clk 0:00:06]}  e2+ {[%clk 0:00:27]} 50. Kf2 {[%clk 0:00:04]}  Rf4+ {[%clk 0:00:27]} 0-1


[Site "https://www.chess.com"]

[Event "Titled Tuesday Blitz April 12 Late 2022"]
[White "Putri, Regita Desyari"]
[Black "Gatterer, Florian"]
[WhiteFideId "7109083"]
[BlackFideId "811688"]
[WhiteElo "1930"]
[BlackElo "2218"]
[Result "1/2-1/2"]
[Round "11"]
[TimeControl "180+1"]
[Date "2022.04.13"]
[WhiteClock "0:02:43"]
[BlackClock "0:02:32"]

1. c4 {[%clk 0:02:59]}  Nf6 {[%clk 0:02:59]} 2. Nc3 {[%clk 0:02:59]}  g6 {[%clk 0:02:56]} 3. Nf3 {[%clk 0:02:57]}  Bg7 {[%clk 0:02:54]} 4. e4 {[%clk 0:02:56]}  d6 {[%clk 0:02:53]} 5. d4 {[%clk 0:02:56]}  O-O {[%clk 0:02:53]} 6. Be2 {[%clk 0:02:56]}  e5 {[%clk 0:02:53]} 7. O-O {[%clk 0:02:56]}  Nc6 {[%clk 0:02:52]} 8. d5 {[%clk 0:02:54]}  Ne7 {[%clk 0:02:52]} 9. h3 {[%clk 0:02:55]}  Nd7 {[%clk 0:02:49]} 10. Rb1 {[%clk 0:02:54]}  a5 {[%clk 0:02:48]} 11. a3 {[%clk 0:02:50]}  h6 {[%clk 0:02:40]} 12. b4 {[%clk 0:02:49]}  axb4 {[%clk 0:02:40]} 13. axb4 {[%clk 0:02:50]}  f5 {[%clk 0:02:40]} 14. Qb3 {[%clk 0:02:50]}  b6 {[%clk 0:02:36]} 15. Ba3 {[%clk 0:02:46]}  Nf6 {[%clk 0:02:32]} 16. Bd3 {[%clk 0:02:43]} 1/2-1/2


[Site "https://www.chess.com"]

[Event "Titled Tuesday Blitz April 12 Late 2022"]
[White "Quesada Perez, Yuniesky"]
[Black "Sarana, Alexey"]
[WhiteFideId "3504409"]
[BlackFideId "24133795"]
[WhiteElo "2622"]
[BlackElo "2666"]
[Result "0-1"]
[Round "11"]
[TimeControl "180+1"]
[Date "2022.04.12"]
[WhiteClock "0:00:02"]
[BlackClock "0:00:30"]

1. e4 {[%clk 0:03:00]}  c5 {[%clk 0:02:57]} 2. Nf3 {[%clk 0:03:00]}  d6 {[%clk 0:02:58]} 3. d4 {[%clk 0:03:00]}  cxd4 {[%clk 0:02:59]} 4. Nxd4 {[%clk 0:03:01]}  Nf6 {[%clk 0:03:00]} 5. Nc3 {[%clk 0:03:01]}  a6 {[%clk 0:03:00]} 6. Be2 {[%clk 0:02:59]}  e5 {[%clk 0:03:00]} 7. Nb3 {[%clk 0:02:59]}  Be7 {[%clk 0:03:00]} 8. Be3 {[%clk 0:02:58]}  Be6 {[%clk 0:02:59]} 9. Qd3 {[%clk 0:02:58]}  Nbd7 {[%clk 0:02:58]} 10. Nd5 {[%clk 0:02:58]}  Rc8 {[%clk 0:02:46]} 11. c4 {[%clk 0:02:42]}  O-O {[%clk 0:02:44]} 12. O-O {[%clk 0:02:39]}  Nc5 {[%clk 0:02:17]} 13. Nxc5 {[%clk 0:02:32]}  dxc5 {[%clk 0:02:17]} 14. Rfd1 {[%clk 0:02:31]}  Bxd5 {[%clk 0:02:16]} 15. cxd5 {[%clk 0:02:28]}  Bd6 {[%clk 0:02:16]} 16. b3 {[%clk 0:02:27]}  h6 {[%clk 0:02:09]} 17. a4 {[%clk 0:02:27]}  Qd7 {[%clk 0:02:06]} 18. h3 {[%clk 0:02:26]}  Kh7 {[%clk 0:02:03]} 19. Rac1 {[%clk 0:02:25]}  g6 {[%clk 0:02:00]} 20. Rc2 {[%clk 0:02:25]}  Rc7 {[%clk 0:01:57]} 21. Rdc1 {[%clk 0:02:25]}  Rfc8 {[%clk 0:01:57]} 22. a5 {[%clk 0:02:16]}  Qd8 {[%clk 0:01:54]} 23. Bg4 {[%clk 0:02:11]}  Nxg4 {[%clk 0:01:51]} 24. hxg4 {[%clk 0:02:12]}  Kg7 {[%clk 0:01:43]} 25. Qd2 {[%clk 0:02:10]}  g5 {[%clk 0:01:39]} 26. Rc4 {[%clk 0:02:03]}  Qd7 {[%clk 0:01:39]} 27. f3 {[%clk 0:01:57]}  Qb5 {[%clk 0:01:39]} 28. Qc3 {[%clk 0:01:57]}  Kg6 {[%clk 0:01:38]} 29. Kf2 {[%clk 0:01:55]}  f6 {[%clk 0:01:38]} 30. Rh1 {[%clk 0:01:53]}  Rh7 {[%clk 0:01:37]} 31. Rc1 {[%clk 0:01:41]}  Rhc7 {[%clk 0:01:37]} 32. Kg1 {[%clk 0:01:37]}  Qd7 {[%clk 0:01:20]} 33. Qd2 {[%clk 0:01:31]}  Qb5 {[%clk 0:01:19]} 34. Qa2 {[%clk 0:01:31]}  Kg7 {[%clk 0:01:11]} 35. Qa4 {[%clk 0:01:29]}  Kg6 {[%clk 0:01:10]} 36. Kf2 {[%clk 0:01:26]}  Kg7 {[%clk 0:01:09]} 37. R1c3 {[%clk 0:01:21]}  Kg6 {[%clk 0:01:09]} 38. Qa3 {[%clk 0:01:20]}  Kg7 {[%clk 0:01:02]} 39. Rc1 {[%clk 0:01:13]}  Kg6 {[%clk 0:01:02]} 40. Qa2 {[%clk 0:01:07]}  Kg7 {[%clk 0:00:57]} 41. Kg1 {[%clk 0:01:06]}  Kg6 {[%clk 0:00:57]} 42. R1c3 {[%clk 0:00:30]}  Kf7 {[%clk 0:00:53]} 43. Kf2 {[%clk 0:00:28]}  Ke8 {[%clk 0:00:52]} 44. Qa3 {[%clk 0:00:26]}  Kd8 {[%clk 0:00:52]} 45. Rc1 {[%clk 0:00:25]}  Bf8 {[%clk 0:00:50]} 46. R1c2 {[%clk 0:00:19]}  Be7 {[%clk 0:00:50]} 47. Qa4 {[%clk 0:00:19]}  Bd6 {[%clk 0:00:49]} 48. Rc1 {[%clk 0:00:18]}  Ra8 {[%clk 0:00:47]} 49. Rh1 {[%clk 0:00:18]}  Bf8 {[%clk 0:00:47]} 50. d6 {[%clk 0:00:17]}  Rc6 {[%clk 0:00:46]} 51. Qxb5 {[%clk 0:00:15]}  axb5 {[%clk 0:00:47]} 52. Rxc5 {[%clk 0:00:15]}  Rxa5 {[%clk 0:00:40]} 53. Rxc6 {[%clk 0:00:15]}  Ra2+ {[%clk 0:00:41]} 54. Kg3 {[%clk 0:00:15]}  bxc6 {[%clk 0:00:42]} 55. Bc5 {[%clk 0:00:15]}  Kd7 {[%clk 0:00:42]} 56. b4 {[%clk 0:00:15]}  Rd2 {[%clk 0:00:40]} 57. Ra1 {[%clk 0:00:09]}  Bxd6 {[%clk 0:00:40]} 58. Ra7+ {[%clk 0:00:09]}  Ke6 {[%clk 0:00:39]} 59. Ra6 {[%clk 0:00:09]}  Bxc5 {[%clk 0:00:38]} 60. bxc5 {[%clk 0:00:10]}  Kd7 {[%clk 0:00:39]} 61. Ra7+ {[%clk 0:00:11]}  Kd8 {[%clk 0:00:39]} 62. Rf7 {[%clk 0:00:11]}  b4 {[%clk 0:00:38]} 63. Rxf6 {[%clk 0:00:11]}  Kc7 {[%clk 0:00:38]} 64. Rxh6 {[%clk 0:00:08]}  b3 {[%clk 0:00:37]} 65. Rh7+ {[%clk 0:00:06]}  Kb8 {[%clk 0:00:36]} 66. Rh1 {[%clk 0:00:04]}  b2 {[%clk 0:00:35]} 67. Rb1 {[%clk 0:00:05]}  Kb7 {[%clk 0:00:35]} 68. f4 {[%clk 0:00:05]}  exf4+ {[%clk 0:00:35]} 69. Kf3 {[%clk 0:00:06]}  Kc7 {[%clk 0:00:35]} 70. e5 {[%clk 0:00:06]}  Kd7 {[%clk 0:00:36]} 71. Ke4 {[%clk 0:00:06]}  Ke6 {[%clk 0:00:36]} 72. Rh1 {[%clk 0:00:03]}  Re2+ {[%clk 0:00:35]} 73. Kd4 {[%clk 0:00:03]}  Rxe5 {[%clk 0:00:32]} 74. Rh6+ {[%clk 0:00:02]}  Kf7 {[%clk 0:00:31]} 75. Rh7+ {[%clk 0:00:02]}  Kg6 {[%clk 0:00:31]} 76. Rb7 {[%clk 0:00:01]}  Re2 {[%clk 0:00:31]} 77. Rb6 {[%clk 0:00:01]}  Kf7 {[%clk 0:00:31]} 78. Rb7+ {[%clk 0:00:01]}  Ke8 {[%clk 0:00:31]} 79. Rb6 {[%clk 0:00:02]}  Kd7 {[%clk 0:00:31]} 80. Kd3 {[%clk 0:00:02]}  Rxg2 {[%clk 0:00:31]} 81. Ke4 {[%clk 0:00:02]}  Rd2 {[%clk 0:00:31]} 82. Kf5 {[%clk 0:00:01]}  Rd5+ {[%clk 0:00:32]} 83. Ke4 {[%clk 0:00:02]}  Rxc5 {[%clk 0:00:32]} 84. Rxb2 {[%clk 0:00:02]}  Ke6 {[%clk 0:00:33]} 85. Rd2 {[%clk 0:00:01]}  Rc4+ {[%clk 0:00:32]} 86. Kf3 {[%clk 0:00:01]}  Ke5 {[%clk 0:00:32]} 87. Kf2 {[%clk 0:00:02]}  Rc3 {[%clk 0:00:31]} 88. Re2+ {[%clk 0:00:02]}  Kd5 {[%clk 0:00:32]} 89. Re7 {[%clk 0:00:02]}  Rg3 {[%clk 0:00:30]} 0-1


[Site "https://www.chess.com"]

[Event "Titled Tuesday Blitz April 12 Late 2022"]
[White "Romero Ruscalleda, Josep"]
[Black "Nozdrachev, Leonid"]
[WhiteFideId "2231859"]
[BlackFideId "24113433"]
[WhiteElo "2331"]
[BlackElo "2242"]
[Result "0-1"]
[Round "11"]
[TimeControl "180+1"]
[Date "2022.04.13"]
[WhiteClock "0:00:16"]
[BlackClock "0:00:51"]

1. e4 {[%clk 0:03:00]}  d6 {[%clk 0:02:59]} 2. d4 {[%clk 0:03:00]}  Nf6 {[%clk 0:02:59]} 3. Nc3 {[%clk 0:03:01]}  e5 {[%clk 0:02:58]} 4. Nf3 {[%clk 0:02:59]}  Nbd7 {[%clk 0:02:58]} 5. Bc4 {[%clk 0:02:57]}  Be7 {[%clk 0:02:57]} 6. Be3 {[%clk 0:02:53]}  O-O {[%clk 0:02:56]} 7. Qd2 {[%clk 0:02:53]}  c6 {[%clk 0:02:55]} 8. a4 {[%clk 0:02:48]}  Nxe4 {[%clk 0:02:55]} 9. Nxe4 {[%clk 0:02:46]}  d5 {[%clk 0:02:55]} 10. Nxe5 {[%clk 0:02:40]}  Nxe5 {[%clk 0:02:52]} 11. dxe5 {[%clk 0:02:39]}  dxc4 {[%clk 0:02:50]} 12. O-O-O {[%clk 0:02:26]}  Be6 {[%clk 0:02:48]} 13. Nd6 {[%clk 0:02:22]}  Bxd6 {[%clk 0:02:41]} 14. Qxd6 {[%clk 0:02:20]}  Qa5 {[%clk 0:02:40]} 15. Qa3 {[%clk 0:02:11]}  Qxe5 {[%clk 0:02:37]} 16. Rhe1 {[%clk 0:02:06]}  Qh5 {[%clk 0:02:33]} 17. h3 {[%clk 0:02:04]}  Bd5 {[%clk 0:02:30]} 18. Bc5 {[%clk 0:02:01]}  Rfe8 {[%clk 0:02:25]} 19. g4 {[%clk 0:02:01]}  Qh6+ {[%clk 0:02:16]} 20. Be3 {[%clk 0:02:00]}  Qxh3 {[%clk 0:02:12]} 21. g5 {[%clk 0:01:56]}  Qf5 {[%clk 0:02:06]} 22. Rd4 {[%clk 0:01:53]}  b6 {[%clk 0:01:58]} 23. Rg1 {[%clk 0:01:49]}  Re4 {[%clk 0:01:48]} 24. Rd2 {[%clk 0:01:33]}  Rae8 {[%clk 0:01:47]} 25. a5 {[%clk 0:01:32]}  Qf3 {[%clk 0:01:39]} 26. axb6 {[%clk 0:01:22]}  axb6 {[%clk 0:01:40]} 27. Qb4 {[%clk 0:01:10]}  Rxe3 {[%clk 0:01:32]} 28. fxe3 {[%clk 0:01:10]}  Qxe3 {[%clk 0:01:33]} 29. Rf1 {[%clk 0:01:04]}  Qxg5 {[%clk 0:01:25]} 30. Qxb6 {[%clk 0:01:02]}  h5 {[%clk 0:01:25]} 31. Rg1 {[%clk 0:00:48]}  Qe3 {[%clk 0:01:22]} 32. Qxe3 {[%clk 0:00:45]}  Rxe3 {[%clk 0:01:23]} 33. Rh2 {[%clk 0:00:41]}  Re5 {[%clk 0:01:21]} 34. Kd2 {[%clk 0:00:38]}  g6 {[%clk 0:01:19]} 35. Kc3 {[%clk 0:00:35]}  Kg7 {[%clk 0:01:18]} 36. Kd4 {[%clk 0:00:35]}  Rf5 {[%clk 0:01:15]} 37. Re2 {[%clk 0:00:31]}  Kh6 {[%clk 0:01:09]} 38. Re5 {[%clk 0:00:29]}  Rxe5 {[%clk 0:01:08]} 39. Kxe5 {[%clk 0:00:30]}  Kg7 {[%clk 0:01:08]} 40. Rg3 {[%clk 0:00:23]}  h4 {[%clk 0:01:03]} 41. Rh3 {[%clk 0:00:20]}  g5 {[%clk 0:01:01]} 42. b4 {[%clk 0:00:20]}  cxb3 {[%clk 0:01:00]} 43. cxb3 {[%clk 0:00:20]}  Kg6 {[%clk 0:00:58]} 44. b4 {[%clk 0:00:19]}  Bg2 {[%clk 0:00:54]} 45. Rc3 {[%clk 0:00:18]}  h3 {[%clk 0:00:54]} 46. b5 {[%clk 0:00:16]}  cxb5 {[%clk 0:00:51]} 0-1


[Site "https://www.chess.com"]

[Event "Titled Tuesday Blitz April 12 Late 2022"]
[White "Ronka, Erik"]
[Black "Schekachikhin, Maksim"]
[WhiteFideId "505080"]
[BlackFideId "24177830"]
[WhiteElo "2264"]
[BlackElo "2230"]
[Result "1-0"]
[Round "11"]
[TimeControl "180+1"]
[Date "2022.04.12"]
[WhiteClock "0:01:08"]
[BlackClock "0:01:58"]

1. d4 {[%clk 0:03:00]}  d5 {[%clk 0:02:59]} 2. Nf3 {[%clk 0:03:01]}  e6 {[%clk 0:02:59]} 3. g3 {[%clk 0:03:01]}  b5 {[%clk 0:02:58]} 4. Bg2 {[%clk 0:03:02]}  Bb7 {[%clk 0:02:57]} 5. O-O {[%clk 0:03:03]}  c5 {[%clk 0:02:57]} 6. a4 {[%clk 0:03:01]}  b4 {[%clk 0:02:57]} 7. c4 {[%clk 0:03:02]}  dxc4 {[%clk 0:02:54]} 8. Nbd2 {[%clk 0:02:37]}  Nf6 {[%clk 0:02:45]} 9. Nxc4 {[%clk 0:02:37]}  Nbd7 {[%clk 0:02:45]} 10. Bf4 {[%clk 0:02:36]}  Nb6 {[%clk 0:02:31]} 11. Nce5 {[%clk 0:02:32]}  cxd4 {[%clk 0:02:14]} 12. Nxf7 {[%clk 0:01:42]}  Kxf7 {[%clk 0:02:11]} 13. Ne5+ {[%clk 0:01:19]}  Kg8 {[%clk 0:02:10]} 14. Bxb7 {[%clk 0:01:20]}  Bd6 {[%clk 0:02:06]} 15. Bxa8 {[%clk 0:01:19]}  Qxa8 {[%clk 0:02:07]} 16. Qxd4 {[%clk 0:01:17]}  Nbd5 {[%clk 0:02:06]} 17. Bg5 {[%clk 0:01:12]}  h5 {[%clk 0:02:05]} 18. Bxf6 {[%clk 0:01:10]}  gxf6 {[%clk 0:02:04]} 19. Nf3 {[%clk 0:01:10]}  Kf7 {[%clk 0:02:03]} 20. e4 {[%clk 0:01:10]}  Ne7 {[%clk 0:01:57]} 21. Qxd6 {[%clk 0:01:09]}  Qxe4 {[%clk 0:01:58]} 22. Qf4 {[%clk 0:01:08]} 1-0


[Site "https://www.chess.com"]

[Event "Titled Tuesday Blitz April 12 Late 2022"]
[White "Sadilek, Peter"]
[Black "O`Gorman, Tom"]
[WhiteFideId "1616439"]
[BlackFideId "2508249"]
[WhiteElo "2145"]
[BlackElo "2247"]
[Result "0-1"]
[Round "11"]
[TimeControl "180+1"]
[Date "2022.04.12"]
[WhiteClock "0:00:02"]
[BlackClock "0:00:16"]

1. d4 {[%clk 0:02:55]}  Nf6 {[%clk 0:02:59]} 2. c4 {[%clk 0:02:55]}  g6 {[%clk 0:02:58]} 3. Nc3 {[%clk 0:02:55]}  Bg7 {[%clk 0:02:59]} 4. e4 {[%clk 0:02:55]}  d6 {[%clk 0:02:59]} 5. Be2 {[%clk 0:02:56]}  O-O {[%clk 0:02:59]} 6. h4 {[%clk 0:02:57]}  c5 {[%clk 0:02:53]} 7. d5 {[%clk 0:02:57]}  e6 {[%clk 0:02:52]} 8. h5 {[%clk 0:02:57]}  exd5 {[%clk 0:02:52]} 9. exd5 {[%clk 0:02:57]}  Nbd7 {[%clk 0:02:45]} 10. Bf4 {[%clk 0:02:50]}  Re8 {[%clk 0:02:35]} 11. Kf1 {[%clk 0:02:46]}  Ne4 {[%clk 0:02:31]} 12. hxg6 {[%clk 0:02:33]}  hxg6 {[%clk 0:02:26]} 13. Nxe4 {[%clk 0:02:30]}  Rxe4 {[%clk 0:02:24]} 14. Qd2 {[%clk 0:02:25]}  Qf6 {[%clk 0:02:21]} 15. Nh3 {[%clk 0:01:56]}  Qxb2 {[%clk 0:02:10]} 16. Qxb2 {[%clk 0:01:57]}  Bxb2 {[%clk 0:02:10]} 17. Rb1 {[%clk 0:01:57]}  Be5 {[%clk 0:02:11]} 18. Be3 {[%clk 0:01:50]}  Rh4 {[%clk 0:02:04]} 19. g3 {[%clk 0:01:42]}  Rh8 {[%clk 0:02:01]} 20. f4 {[%clk 0:01:35]}  Bf6 {[%clk 0:02:00]} 21. a4 {[%clk 0:01:22]}  Kg7 {[%clk 0:01:42]} 22. Kg2 {[%clk 0:01:20]}  Nb6 {[%clk 0:01:21]} 23. a5 {[%clk 0:01:05]}  Na4 {[%clk 0:01:19]} 24. Bd2 {[%clk 0:00:43]}  Rb8 {[%clk 0:01:06]} 25. Nf2 {[%clk 0:00:33]}  Rxh1 {[%clk 0:01:03]} 26. Rxh1 {[%clk 0:00:33]}  Nc3 {[%clk 0:01:01]} 27. Bg4 {[%clk 0:00:28]}  Bxg4 {[%clk 0:00:56]} 28. Nxg4 {[%clk 0:00:29]}  Ne4 {[%clk 0:00:55]} 29. Be3 {[%clk 0:00:28]}  Bc3 {[%clk 0:00:53]} 30. f5 {[%clk 0:00:22]}  gxf5 {[%clk 0:00:43]} 31. Bh6+ {[%clk 0:00:22]}  Kg6 {[%clk 0:00:42]} 32. Ne3 {[%clk 0:00:22]}  Rh8 {[%clk 0:00:37]} 33. Bf4 {[%clk 0:00:23]}  Rxh1 {[%clk 0:00:37]} 34. Kxh1 {[%clk 0:00:24]}  Bd2 {[%clk 0:00:35]} 35. Kg2 {[%clk 0:00:20]}  Bxe3 {[%clk 0:00:29]} 36. Bxe3 {[%clk 0:00:21]}  Nc3 {[%clk 0:00:27]} 37. Bf4 {[%clk 0:00:17]}  Ne4 {[%clk 0:00:27]} 38. Kf3 {[%clk 0:00:18]}  Kf6 {[%clk 0:00:23]} 39. Ke3 {[%clk 0:00:13]}  b6 {[%clk 0:00:22]} 40. axb6 {[%clk 0:00:04]}  axb6 {[%clk 0:00:23]} 41. Kf3 {[%clk 0:00:04]}  Ke7 {[%clk 0:00:20]} 42. g4 {[%clk 0:00:04]}  Nc3 {[%clk 0:00:17]} 43. gxf5 {[%clk 0:00:03]}  Nd1 {[%clk 0:00:16]} 44. f6+ {[%clk 0:00:02]}  Kd7 {[%clk 0:00:16]} 45. Kg4 {[%clk 0:00:02]}  Nb2 {[%clk 0:00:16]} 46. Kh5 {[%clk 0:00:02]}  Nxc4 {[%clk 0:00:16]} 47. Kh6 {[%clk 0:00:03]}  Ke8 {[%clk 0:00:16]} 48. Kg7 {[%clk 0:00:02]}  b5 {[%clk 0:00:16]} 0-1


[Site "https://www.chess.com"]